fUSD/lending_fUSD_20250828
["ID","MTS","AMOUNT","RATE_DAILY","PERIOD"]
[381826167,1756360243083,-821.12,0.00018993,2]
[381826171,1756360243092,-400.0,0.00018993,2]
[381826175,1756360243102,-150.724341,0.00018993,2]
[381826178,1756360243111,-167.7019719,0.00018993,2]
[381826181,1756360243120,-400.0,0.00018993,2]
[381826184,1756360243129,-400.0,0.00018993,2]
[381826187,1756360243139,-245.26931474,0.00018993,2]
[381826189,1756360243148,-400.0,0.00018993,2]
[381826191,1756360243157,-400.0,0.00018993,2]
[381826193,1756360243167,-400.0,0.00018993,2]
[381826195,1756360243177,-400.0,0.00018993,2]
[381826197,1756360243186,-400.0,0.00018993,2]
[381826199,1756360243195,-400.0,0.00018993,2]
[381826201,1756360243204,-400.0,0.00018993,2]
[381826203,1756360243214,-400.0,0.00018993,2]
[381826205,1756360243223,-400.0,0.00018993,2]
[381826207,1756360243232,-228.99,0.00018993,2]
[381826209,1756360243241,-400.0,0.00018994,2]
[381826211,1756360243251,-400.0,0.00018994,2]
[381826213,1756360243261,-400.0,0.00018994,2]
[381826215,1756360243270,-400.0,0.00018994,2]
[381826217,1756360243279,-326.64023844,0.00018994,2]
[381826219,1756360243288,-400.0,0.00018994,2]
[381826221,1756360243297,-400.0,0.00018994,2]
[381826223,1756360243306,-400.0,0.00018994,2]
[381826225,1756360243317,-194.19232568,0.00018994,2]
[381826227,1756360243329,-400.0,0.00018994,2]
[381826229,1756360243338,-400.0,0.00018994,2]
[381826231,1756360243347,-400.0,0.00018994,2]
[381826233,1756360243356,-400.0,0.00018994,2]
[381826235,1756360243366,-400.0,0.00018994,2]
[381826237,1756360243375,-434.17050046,0.00018994,2]
[381826239,1756360243384,-400.0,0.00018994,2]
[381826241,1756360243396,-400.0,0.00018994,2]
[381826243,1756360243406,-400.0,0.00018994,2]
[381826245,1756360243415,-400.0,0.00018994,2]
[381826247,1756360243424,-400.0,0.00018994,2]
[381826249,1756360243433,-400.0,0.00018994,2]
[381826251,1756360243442,-400.0,0.00018994,2]
[381826253,1756360243451,-698.85,0.00018994,2]
[381826255,1756360243460,-580.66,0.00018994,2]
[381826257,1756360243469,-400.0,0.00018994,2]
[381826259,1756360243478,-339.53292642,0.00018994,2]
[381826260,1756360243487,-400.0,0.00018994,2]
[381826262,1756360243497,-400.0,0.00018994,2]
[381826264,1756360243506,-173.16,0.00018994,2]
[381826266,1756360243515,-400.0,0.00018994,2]
[381826268,1756360243525,-400.0,0.00018994,2]
[381826270,1756360243534,-400.0,0.00018995,2]
[381826272,1756360243543,-400.0,0.00018995,2]
[381826274,1756360243552,-275.48167891,0.00018995,2]
[381826276,1756360243562,-400.0,0.00019093,2]
[381826278,1756360243571,-400.0,0.00019093,2]
[381826280,1756360243580,-400.0,0.00019093,2]
[381826282,1756360243590,-400.0,0.00019093,2]
[381826284,1756360243600,-400.0,0.00019093,2]
[381826286,1756360243610,-400.0,0.00019093,2]
[381826288,1756360243619,-400.0,0.00019093,2]
[381826290,1756360243628,-214.27377439,0.00019093,2]
[381826292,1756360243637,-385.5349178,0.00019093,2]
[381826294,1756360243647,-400.0,0.00019093,2]
[381826296,1756360243657,-1002.15,0.00019093,2]
[381826298,1756360243666,-400.0,0.00019093,2]
[381826300,1756360243675,-400.0,0.00019093,2]
[381826302,1756360243684,-400.0,0.00019093,2]
[381826304,1756360243694,-400.0,0.00019093,2]
[381826306,1756360243703,-400.0,0.00019093,2]
[381826308,1756360243713,-400.0,0.00019093,2]
[381826310,1756360243723,-400.0,0.00019093,2]
[381826312,1756360243732,-400.0,0.00019093,2]
[381826314,1756360243741,-400.0,0.00019093,2]
[381826316,1756360243751,-400.0,0.00019093,2]
[381826318,1756360243762,-400.0,0.00019093,2]
[381826320,1756360243771,-400.0,0.00019093,2]
[381826322,1756360243780,-400.0,0.00019093,2]
[381826324,1756360243790,-400.0,0.00019093,2]
[381826326,1756360243799,-400.0,0.00019093,2]
[381826328,1756360243809,-400.0,0.00019093,2]
[381826330,1756360243818,-400.0,0.00019093,2]
[381826332,1756360243828,-400.0,0.00019093,2]
[381826334,1756360243838,-400.0,0.00019093,2]
[381826336,1756360243847,-400.0,0.00019093,2]
[381826338,1756360243856,-400.0,0.00019093,2]
[381826340,1756360243865,-400.0,0.00019093,2]
[381826342,1756360243875,-400.0,0.00019093,2]
[381826344,1756360243885,-400.0,0.00019093,2]
[381826346,1756360243894,-400.0,0.00019093,2]
[381826348,1756360243903,-400.0,0.00019093,2]
[381826350,1756360243912,-400.0,0.00019093,2]
[381826352,1756360243922,-400.0,0.00019093,2]
[381826353,1756360243931,-400.0,0.00019093,2]
[381826355,1756360243940,-400.0,0.00019093,2]
[381826357,1756360243949,-400.0,0.00019093,2]
[381826359,1756360243958,-215.19,0.00019093,2]
[381826361,1756360243967,-400.0,0.00019093,2]
[381826363,1756360243977,-188.15704599,0.00019093,2]
[381826365,1756360243987,-400.0,0.00019093,2]
[381826367,1756360243996,-400.0,0.00019093,2]
[381826369,1756360244005,-400.0,0.00019093,2]
[381826371,1756360244015,-400.0,0.00019093,2]
[381826373,1756360244024,-400.0,0.00019093,2]
[381826375,1756360244033,-400.0,0.00019093,2]
[381826377,1756360244043,-400.0,0.00019093,2]
[381826379,1756360244051,-400.0,0.00019093,2]
[381826381,1756360244061,-296.96,0.00019093,2]
[381826383,1756360244070,-400.0,0.00019093,2]
[381826385,1756360244079,-878.83,0.00019093,2]
[381826387,1756360244088,-400.0,0.00019093,2]
[381826389,1756360244097,-319.76,0.00019093,2]
[381826391,1756360244106,-400.0,0.00019093,2]
[381826393,1756360244116,-460.68,0.00019093,2]
[381826395,1756360244126,-556.6,0.00019093,2]
[381826397,1756360244135,-400.0,0.00019093,2]
[381826399,1756360244144,-345.02,0.00019093,2]
[381826401,1756360244153,-400.0,0.00019093,2]
[381826403,1756360244162,-699.15,0.00019093,2]
[381826404,1756360244171,-492.98906059,0.00019093,2]
[381826406,1756360244180,-400.0,0.00019093,2]
[381826408,1756360244190,-400.0,0.00019093,2]
[381826410,1756360244199,-400.0,0.00019093,2]
[381826412,1756360244210,-1500.0,0.00019093,2]
[381826414,1756360244220,-959.89,0.00019094,2]
[381826416,1756360244230,-400.0,0.00019094,2]
[381826418,1756360244239,-400.0,0.00019094,2]
[381826420,1756360244248,-400.0,0.00019094,2]
[381826422,1756360244258,-400.0,0.00019094,2]
[381826424,1756360244267,-400.0,0.00019094,2]
[381826426,1756360244276,-400.0,0.00019094,2]
[381826428,1756360244285,-12241.87,0.00019151,2]
[381826430,1756360244294,-1000.0,0.00019158,2]
[381826432,1756360244304,-200.0,0.00019178,2]
[381826434,1756360244313,-151.0,0.00019178,2]
[381826436,1756360244328,-5000.0,0.00019178,2]
[381826438,1756360244346,-3329.01,0.00019178,2]
[381826440,1756360244361,-500.0,0.00019178,2]
[381826442,1756360244379,-1836.48,0.0001919,2]
[381826444,1756360244389,-400.0,0.00019209,2]
[381826446,1756360244410,-493.66023719,0.00019209,2]
[381826448,1756360244425,-400.0,0.00019209,2]
[381826450,1756360244434,-368.3139326,0.00019209,2]
[381826452,1756360244443,-400.0,0.00019209,2]
[381826454,1756360244453,-400.0,0.00019209,2]
[381826456,1756360244463,-512.08554564,0.00019219,2]
[381826458,1756360244472,-168.0,0.0001922,2]
[381826460,1756360244481,-210.0,0.0001924,2]
[381826462,1756360244491,-188.31966604,0.00019266,2]
[381826464,1756360244500,-848.07,0.00019266,2]
[381826466,1756360244509,-400.0,0.00019266,2]
[381826468,1756360244519,-400.0,0.00019266,2]
[381826470,1756360244528,-400.0,0.00019266,2]
[381826472,1756360244538,-400.0,0.00019266,2]
[381826474,1756360244547,-400.0,0.00019266,2]
[381826476,1756360244556,-400.0,0.00019266,2]
[381826478,1756360244566,-400.0,0.00019266,2]
[381826480,1756360244575,-400.0,0.00019266,2]
[381826482,1756360244584,-400.0,0.00019266,2]
[381826484,1756360244593,-400.0,0.00019266,2]
[381826486,1756360244602,-3749.14,0.00019266,2]
[381826488,1756360244611,-738.11,0.00019266,2]
[381826490,1756360244620,-541.56,0.00019267,2]
[381826491,1756360244629,-400.0,0.00019267,2]
[381826492,1756360244638,-400.0,0.00019267,2]
[381826493,1756360244647,-400.0,0.00019267,2]
[381826494,1756360244656,-400.0,0.00019267,2]
[381826495,1756360244664,-400.0,0.00019267,2]
[381826496,1756360244673,-400.0,0.00019267,2]
[381826498,1756360244682,-400.0,0.00019267,2]
[381826500,1756360244691,-400.0,0.00019267,2]
[381826502,1756360244701,-400.0,0.00019267,2]
[381826504,1756360244710,-400.0,0.00019267,2]
[381826506,1756360244719,-400.0,0.00019267,2]
[381826508,1756360244728,-418.76,0.00019267,2]
[381826510,1756360244738,-400.0,0.00019267,2]
[381826512,1756360244747,-400.0,0.00019267,2]
[381826514,1756360244756,-400.0,0.00019267,2]
[381826516,1756360244765,-400.0,0.00019267,2]
[381826518,1756360244774,-400.0,0.00019267,2]
[381826520,1756360244783,-400.0,0.00019267,2]
[381826522,1756360244792,-400.0,0.00019267,2]
[381826524,1756360244801,-389.83756372,0.00019267,2]
[381826526,1756360244811,-400.0,0.00019267,2]
[381826528,1756360244820,-245.00749256,0.00019267,2]
[381826530,1756360244830,-400.0,0.00019267,2]
[381826532,1756360244840,-237.375839,0.00019267,2]
[381826535,1756360244849,-468.699291,0.00019267,2]
[381826536,1756360244859,-821.12,0.00019267,2]
[381826539,1756360244868,-400.0,0.00019267,2]
[381826541,1756360244877,-150.724341,0.00019267,2]
[381826543,1756360244887,-400.0,0.00019267,2]
[381826545,1756360244897,-400.0,0.00019267,2]
[381826547,1756360244906,-400.0,0.00019267,2]
[381826549,1756360244915,-400.0,0.00019267,2]
[381826551,1756360244925,-244.43935997,0.00019267,2]
[381826552,1756360244934,-400.0,0.00019267,2]
[381826554,1756360244944,-400.0,0.00019267,2]
[381826556,1756360244954,-400.0,0.00019267,2]
[381826558,1756360244963,-400.0,0.00019267,2]
[381826560,1756360244972,-400.0,0.00019267,2]
[381826562,1756360244981,-400.0,0.00019267,2]
[381826564,1756360244991,-678.0,0.00019268,2]
[381826566,1756360245000,-400.0,0.00019268,2]
[381826568,1756360245010,-400.0,0.00019268,2]
[381826570,1756360245020,-400.0,0.00019268,2]
[381826573,1756360245029,-400.0,0.00019268,2]
[381826574,1756360245038,-400.0,0.00019268,2]
[381826576,1756360245048,-400.0,0.00019268,2]
[381826578,1756360245057,-534.75405279,0.00019268,2]
[381826580,1756360245066,-162.21834458,0.00019268,2]
[381826582,1756360245075,-400.0,0.00019268,2]
[381826584,1756360245085,-400.0,0.00019268,2]
[381826587,1756360245095,-400.0,0.00019268,2]
[381826589,1756360245104,-400.0,0.00019268,2]
[381826591,1756360245114,-400.0,0.00019268,2]
[381826593,1756360245123,-698.85,0.00019268,2]
[381826595,1756360245133,-580.66,0.00019268,2]
[381826596,1756360245143,-400.0,0.00019268,2]
[381826598,1756360245152,-400.0,0.00019268,2]
[381826600,1756360245161,-400.0,0.00019268,2]
[381826602,1756360245171,-400.0,0.00019268,2]
[381826604,1756360245181,-400.0,0.00019268,2]
[381826606,1756360245191,-400.0,0.00019269,2]
[381826608,1756360245201,-400.0,0.00019269,2]
[381826610,1756360245211,-161.0,0.000193,2]
[381826612,1756360245220,-152.0,0.00019339,2]
[381826614,1756360245230,-152.0,0.00019339,2]
[381826616,1756360245240,-152.0,0.00019339,2]
[381826618,1756360245249,-264.51689489,0.00019339,2]
[381826620,1756360245258,-400.0,0.00019367,2]
[381826622,1756360245268,-400.0,0.00019367,2]
[381826624,1756360245277,-400.0,0.00019367,2]
[381826626,1756360245286,-400.0,0.00019367,2]
[381826629,1756360245296,-400.0,0.00019367,2]
[381826631,1756360245305,-400.0,0.00019367,2]
[381826633,1756360245317,-400.0,0.00019367,2]
[381826635,1756360245328,-400.0,0.00019367,2]
[381826637,1756360245337,-1002.15,0.00019367,2]
[381826639,1756360245347,-400.0,0.00019367,2]
[381826641,1756360245356,-400.0,0.00019367,2]
[381826643,1756360245366,-400.0,0.00019367,2]
[381826645,1756360245376,-400.0,0.00019367,2]
[381826647,1756360245385,-441.54734222,0.00019367,2]
[381826649,1756360245396,-400.0,0.00019367,2]
[381826651,1756360245406,-400.0,0.00019367,2]
[381826653,1756360245415,-400.0,0.00019367,2]
[381826655,1756360245424,-400.0,0.00019367,2]
[381826657,1756360245434,-400.0,0.00019367,2]
[381826659,1756360245443,-400.0,0.00019367,2]
[381826661,1756360245452,-400.0,0.00019367,2]
[381826663,1756360245461,-400.0,0.00019367,2]
[381826665,1756360245471,-400.0,0.00019367,2]
[381826667,1756360245481,-400.0,0.00019367,2]
[381826669,1756360245490,-400.0,0.00019367,2]
[381826671,1756360245500,-400.0,0.00019367,2]
[381826673,1756360245509,-400.0,0.00019367,2]
[381826675,1756360245519,-400.0,0.00019367,2]
[381826677,1756360245528,-400.0,0.00019367,2]
[381826679,1756360245537,-400.0,0.00019367,2]
[381826681,1756360245547,-535.36570429,0.00019367,2]
[381826683,1756360245556,-400.0,0.00019367,2]
[381826685,1756360245566,-400.0,0.00019367,2]
[381826687,1756360245575,-400.0,0.00019367,2]
[381826689,1756360245584,-400.0,0.00019367,2]
[381826691,1756360245593,-400.0,0.00019367,2]
[381826693,1756360245602,-400.0,0.00019367,2]
[381826695,1756360245612,-297.86546753,0.00019367,2]
[381826697,1756360245621,-471.46841374,0.00019367,2]
[381826699,1756360245630,-400.0,0.00019367,2]
[381826701,1756360245639,-400.0,0.00019367,2]
[381826703,1756360245648,-305.14447385,0.00019367,2]
[381826705,1756360245658,-400.0,0.00019367,2]
[381826707,1756360245667,-400.0,0.00019367,2]
[381826709,1756360245675,-400.0,0.00019367,2]
[381826711,1756360245685,-400.0,0.00019367,2]
[381826712,1756360245694,-400.0,0.00019367,2]
[381826714,1756360245703,-400.0,0.00019367,2]
[381826716,1756360245712,-400.0,0.00019367,2]
[381826718,1756360245722,-400.0,0.00019367,2]
[381826720,1756360245731,-878.83,0.00019367,2]
[381826723,1756360245741,-400.0,0.00019367,2]
[381826725,1756360245750,-400.0,0.00019367,2]
[381826727,1756360245759,-460.68,0.00019367,2]
[381826729,1756360245768,-556.6,0.00019367,2]
[381826731,1756360245778,-400.0,0.00019367,2]
[381826733,1756360245787,-400.0,0.00019367,2]
[381826734,1756360245796,-699.15,0.00019367,2]
[381826737,1756360245807,-400.0,0.00019367,2]
[381826738,1756360245818,-400.0,0.00019367,2]
[381826740,1756360245828,-437.43,0.00019367,2]
[381826743,1756360245839,-959.89,0.00019368,2]
[381826744,1756360245848,-400.0,0.00019368,2]
[381826746,1756360245857,-400.0,0.00019368,2]
[381826749,1756360245867,-400.0,0.00019368,2]
[381826750,1756360245876,-400.0,0.00019368,2]
[381826753,1756360245886,-400.0,0.00019368,2]
[381826755,1756360245896,-400.0,0.00019368,2]
[381826756,1756360245906,-500.0,0.000194,2]
[381826759,1756360245915,-500.0,0.000194,2]
[381826760,1756360245925,-300.0,0.00019473,2]
[381826762,1756360245934,-469.04755469,0.00019483,2]
[381826765,1756360245944,-545.89159764,0.00019483,2]
[381826766,1756360245955,-400.0,0.00019483,2]
[381826769,1756360245964,-400.0,0.00019483,2]
[381826770,1756360245974,-221.0,0.000195,2]
[381826772,1756360245983,-1500.0,0.00019516,2]
[381826774,1756360245992,-848.07,0.0001954,2]
[381826776,1756360246002,-400.0,0.0001954,2]
[381826778,1756360246011,-400.0,0.0001954,2]
[381826781,1756360246022,-400.0,0.0001954,2]
[381826783,1756360246031,-400.0,0.0001954,2]
[381826785,1756360246042,-400.0,0.0001954,2]
[381826787,1756360246051,-400.0,0.0001954,2]
[381826789,1756360246060,-400.0,0.0001954,2]
[381826791,1756360246069,-400.0,0.0001954,2]
[381826793,1756360246078,-400.0,0.0001954,2]
[381826795,1756360246088,-400.0,0.0001954,2]
[381826797,1756360246097,-3749.14,0.0001954,2]
[381826799,1756360246106,-738.11,0.0001954,2]
[381826801,1756360246116,-190.933,0.00019541,2]
[381826803,1756360246125,-457.90341859,0.00019541,2]
[381826805,1756360246134,-400.0,0.00019541,2]
[381826806,1756360246144,-400.0,0.00019541,2]
[381826809,1756360246154,-400.0,0.00019541,2]
[381826811,1756360246163,-400.0,0.00019541,2]
[381826813,1756360246173,-400.0,0.00019541,2]
[381826815,1756360246182,-400.0,0.00019541,2]
[381826817,1756360246192,-418.76,0.00019541,2]
[381826819,1756360246201,-400.0,0.00019541,2]
[381826820,1756360246210,-400.0,0.00019541,2]
[381826822,1756360246220,-400.0,0.00019541,2]
[381826824,1756360246230,-400.0,0.00019541,2]
[381826826,1756360246238,-400.0,0.00019541,2]
[381826828,1756360246248,-400.0,0.00019541,2]
[381826830,1756360246257,-400.0,0.00019541,2]
[381826833,1756360246268,-400.0,0.00019541,2]
[381826835,1756360246277,-400.0,0.00019541,2]
[381826837,1756360246287,-237.375839,0.00019541,2]
[381826839,1756360246297,-468.699291,0.00019541,2]
[381826841,1756360246306,-821.12,0.00019541,2]
[381826843,1756360246317,-400.0,0.00019541,2]
[381826845,1756360246328,-150.724341,0.00019541,2]
[381826847,1756360246337,-400.0,0.00019541,2]
[381826849,1756360246347,-400.0,0.00019541,2]
[381826851,1756360246356,-400.0,0.00019541,2]
[381826853,1756360246366,-400.0,0.00019541,2]
[381826855,1756360246375,-400.0,0.00019541,2]
[381826857,1756360246384,-400.0,0.00019541,2]
[381826858,1756360246394,-400.0,0.00019541,2]
[381826860,1756360246404,-400.0,0.00019541,2]
[381826862,1756360246413,-400.0,0.00019541,2]
[381826864,1756360246422,-400.0,0.00019541,2]
[381826866,1756360246432,-400.0,0.00019542,2]
[381826869,1756360246442,-400.0,0.00019542,2]
[381826871,1756360246451,-400.0,0.00019542,2]
[381826883,1756360246552,-400.0,0.00019542,2]
[381826885,1756360246567,-400.0,0.00019542,2]
[381826887,1756360246578,-2370.494,0.00019542,2]
[381826889,1756360246587,-483.28068895,0.00019542,2]
[381826891,1756360246597,-400.0,0.00019542,2]
[381826893,1756360246606,-698.85,0.00019542,2]
[381826895,1756360246615,-580.66,0.00019542,2]
[381826897,1756360246625,-400.0,0.00019542,2]
[381826899,1756360246635,-400.0,0.00019542,2]
[381826901,1756360246645,-400.0,0.00019542,2]
[381826903,1756360246654,-400.0,0.00019542,2]
[381826905,1756360246664,-400.0,0.00019542,2]
[381826907,1756360246673,-400.0,0.00019543,2]
[381826909,1756360246683,-400.0,0.00019543,2]
[381826911,1756360246692,-210.0,0.0001961,2]
[381826913,1756360246702,-204.0,0.0001961,2]
[381826915,1756360246711,-472.56291819,0.00019641,2]
[381826917,1756360246721,-400.0,0.00019641,2]
[381826919,1756360246730,-400.0,0.00019641,2]
[381826921,1756360246739,-400.0,0.00019641,2]
[381826923,1756360246749,-400.0,0.00019641,2]
[381826926,1756360246759,-400.0,0.00019641,2]
[381826928,1756360246768,-1002.15,0.00019641,2]
[381826930,1756360246778,-400.0,0.00019641,2]
[381826932,1756360246788,-214.55654599,0.00019641,2]
[381826934,1756360246797,-400.0,0.00019641,2]
[381826936,1756360246807,-400.0,0.00019641,2]
[381826938,1756360246816,-400.0,0.00019641,2]
[381826940,1756360246826,-400.0,0.00019641,2]
[381826942,1756360246836,-400.0,0.00019641,2]
[381826944,1756360246847,-400.0,0.00019641,2]
[381826946,1756360246856,-400.0,0.00019641,2]
[381826948,1756360246865,-400.0,0.00019641,2]
[381826950,1756360246875,-400.0,0.00019641,2]
[381826952,1756360246885,-400.0,0.00019641,2]
[381826954,1756360246895,-400.0,0.00019641,2]
[381826956,1756360246905,-400.0,0.00019641,2]
[381826958,1756360246915,-400.0,0.00019641,2]
[381826960,1756360246924,-400.0,0.00019641,2]
[381826962,1756360246934,-400.0,0.00019641,2]
[381826964,1756360246943,-400.0,0.00019641,2]
[381826966,1756360246953,-400.0,0.00019641,2]
[381826968,1756360246962,-400.0,0.00019641,2]
[381826970,1756360246972,-400.0,0.00019641,2]
[381826972,1756360246981,-400.0,0.00019641,2]
[381826974,1756360246991,-400.0,0.00019641,2]
[381826976,1756360247000,-400.0,0.00019641,2]
[381826978,1756360247009,-400.0,0.00019641,2]
[381826980,1756360247019,-400.0,0.00019641,2]
[381826982,1756360247028,-400.0,0.00019641,2]
[381826985,1756360247039,-400.0,0.00019641,2]
[381826987,1756360247048,-878.83,0.00019641,2]
[381826988,1756360247058,-400.0,0.00019641,2]
[381826991,1756360247068,-400.0,0.00019641,2]
[381826993,1756360247078,-460.68,0.00019641,2]
[381826995,1756360247087,-556.6,0.00019641,2]
[381826997,1756360247097,-400.0,0.00019641,2]
[381826999,1756360247106,-400.0,0.00019641,2]
[381827001,1756360247116,-699.15,0.00019641,2]
[381827003,1756360247125,-400.0,0.00019641,2]
[381827005,1756360247135,-400.0,0.00019641,2]
[381827007,1756360247145,-959.89,0.00019642,2]
[381827009,1756360247155,-400.0,0.00019642,2]
[381827011,1756360247164,-400.0,0.00019642,2]
[381827013,1756360247174,-400.0,0.00019642,2]
[381827015,1756360247183,-400.0,0.00019642,2]
[381827017,1756360247193,-406.65268431,0.00019642,2]
[381827019,1756360247202,-1500.0,0.00019706,2]
[381827021,1756360247211,-2300.0,0.00019712,2]
[381827023,1756360247220,-900.0,0.00019712,2]
[381827025,1756360247230,-400.0,0.00019726,2]
[381827027,1756360247239,-400.0,0.00019726,2]
[381827029,1756360247249,-400.0,0.00019726,2]
[381827031,1756360247260,-400.0,0.00019726,2]
[381827033,1756360247269,-352.03266602,0.00019726,2]
[381827035,1756360247279,-156.587,0.00019726,2]
[381827037,1756360247288,-544.43149287,0.00019757,2]
[381827039,1756360247297,-400.0,0.00019757,2]
[381827041,1756360247306,-848.07,0.00019814,2]
[381827043,1756360247317,-400.0,0.00019814,2]
[381827045,1756360247328,-400.0,0.00019814,2]
[381827047,1756360247338,-400.0,0.00019814,2]
[381827049,1756360247347,-400.0,0.00019814,2]
[381827051,1756360247360,-400.0,0.00019814,2]
[381827053,1756360247369,-400.0,0.00019814,2]
[381827055,1756360247378,-400.0,0.00019814,2]
[381827057,1756360247388,-400.0,0.00019814,2]
[381827059,1756360247399,-400.0,0.00019814,2]
[381827061,1756360247408,-400.0,0.00019814,2]
[381827063,1756360247418,-3749.14,0.00019814,2]
[381827065,1756360247428,-738.11,0.00019814,2]
[381827067,1756360247437,-400.0,0.00019815,2]
[381827069,1756360247448,-418.76,0.00019815,2]
[381827071,1756360247457,-400.0,0.00019815,2]
[381827073,1756360247467,-400.0,0.00019815,2]
[381827076,1756360247476,-400.0,0.00019815,2]
[381827078,1756360247486,-400.0,0.00019815,2]
[381827080,1756360247496,-400.0,0.00019815,2]
[381827082,1756360247506,-821.12,0.00019815,2]
[381827084,1756360247515,-400.0,0.00019815,2]
[381827086,1756360247524,-400.0,0.00019815,2]
[381827088,1756360247534,-400.0,0.00019815,2]
[381827090,1756360247544,-400.0,0.00019815,2]
[381827092,1756360247553,-400.0,0.00019815,2]
[381827094,1756360247563,-400.0,0.00019815,2]
[381827096,1756360247572,-400.0,0.00019816,2]
[381827098,1756360247582,-400.0,0.00019816,2]
[381827100,1756360247591,-400.0,0.00019816,2]
[381827102,1756360247600,-400.0,0.00019816,2]
[381827104,1756360247609,-400.0,0.00019816,2]
[381827106,1756360247619,-400.0,0.00019816,2]
[381827108,1756360247628,-698.85,0.00019816,2]
[381827110,1756360247637,-580.66,0.00019816,2]
[381827112,1756360247646,-400.0,0.00019816,2]
[381827114,1756360247655,-400.0,0.00019816,2]
[381827116,1756360247665,-400.0,0.00019816,2]
[381827118,1756360247674,-400.0,0.00019816,2]
[381827120,1756360247684,-400.0,0.00019816,2]
[381827122,1756360247693,-267.46074303,0.0001982,2]
[381827124,1756360247703,-1047.14835799,0.00019835,2]
[381827126,1756360247712,-183.15,0.00019863,2]
[381827128,1756360247721,-163.19001051,0.000199,2]
[381827130,1756360247730,-400.0,0.00019915,2]
[381827132,1756360247740,-400.0,0.00019915,2]
[381827134,1756360247749,-400.0,0.00019915,2]
[381827135,1756360247758,-400.0,0.00019915,2]
[381827137,1756360247768,-482.39010812,0.00019915,2]
[381827139,1756360247777,-1002.15,0.00019915,2]
[381827141,1756360247787,-400.0,0.00019915,2]
[381827143,1756360247796,-400.0,0.00019915,2]
[381827145,1756360247805,-400.0,0.00019915,2]
[381827147,1756360247814,-400.0,0.00019915,2]
[381827149,1756360247823,-400.0,0.00019915,2]
[381827151,1756360247832,-400.0,0.00019915,2]
[381827153,1756360247842,-400.0,0.00019915,2]
[381827155,1756360247851,-400.0,0.00019915,2]
[381827157,1756360247861,-400.0,0.00019915,2]
[381827159,1756360247870,-400.0,0.00019915,2]
[381827161,1756360247880,-400.0,0.00019915,2]
[381827163,1756360247890,-400.0,0.00019915,2]
[381827165,1756360247899,-400.0,0.00019915,2]
[381827167,1756360247908,-530.08492296,0.00019915,2]
[381827169,1756360247918,-220.69069173,0.00019915,2]
[381827171,1756360247927,-400.0,0.00019915,2]
[381827173,1756360247936,-400.0,0.00019915,2]
[381827175,1756360247945,-400.0,0.00019915,2]
[381827177,1756360247954,-400.0,0.00019915,2]